fUST/lending_fUST_20240611
["ID","MTS","AMOUNT","RATE_DAILY","PERIOD"]
[329065474,1718079043679,-530.974222,0.0002041,2]
[329065475,1718079043690,-536.262157,0.0002041,2]
[329065476,1718079043700,-536.262157,0.0002041,2]
[329065477,1718079043711,-269.80084,0.0002041,2]
[329065478,1718079043723,-269.80084,0.0002041,2]
[329065479,1718079043736,-220.586485,0.0002041,2]
[329065480,1718079043748,-220.586485,0.0002041,2]
[329065481,1718079043758,-366.882546,0.0002041,2]
[329065482,1718079043768,-366.882546,0.0002041,2]
[329065484,1718079043779,-780.714714,0.0002041,2]
[329065486,1718079043790,-780.714709,0.0002041,2]
[329065487,1718079043800,-1298.014555,0.0002041,2]
[329065488,1718079043811,-1298.014555,0.0002041,2]
[329065489,1718079043822,-252.38026796,0.00020411,2]
[329065490,1718079043832,-739.9152381,0.00020411,2]
[329065491,1718079043842,-214.00375846,0.00020411,2]
[329065492,1718079043852,-151.0,0.00020411,2]
[329065493,1718079043863,-151.0,0.00020411,2]
[329065494,1718079043873,-153.475458,0.00020411,2]
[329065495,1718079043883,-151.0,0.00020411,2]
[329065496,1718079043894,-151.0,0.00020411,2]
[329065497,1718079043904,-151.0,0.00020411,2]
[329065499,1718079043915,-527.789218,0.00020411,2]
[329065500,1718079043926,-527.789218,0.00020411,2]
[329065501,1718079043936,-151.0,0.00020411,2]
[329065502,1718079043947,-530.974222,0.00020411,2]
[329065503,1718079043957,-536.262157,0.00020411,2]
[329065504,1718079043967,-530.97423,0.00020411,2]
[329065505,1718079043978,-536.262157,0.00020411,2]
[329065506,1718079043988,-269.80084,0.00020411,2]
[329065507,1718079043999,-269.800846,0.00020411,2]
[329065508,1718079044009,-220.586485,0.00020411,2]
[329065509,1718079044019,-220.586479,0.00020411,2]
[329065510,1718079044029,-366.882546,0.00020411,2]
[329065511,1718079044040,-366.882543,0.00020411,2]
[329065512,1718079044050,-151.0,0.00020412,2]
[329065513,1718079044061,-151.0,0.00020412,2]
[329065514,1718079044072,-151.0,0.00020412,2]
[329065515,1718079044082,-527.789218,0.00020412,2]
[329065516,1718079044092,-527.789218,0.00020412,2]
[329065517,1718079044103,-151.0,0.00020412,2]
[329065518,1718079044113,-544.78593254,0.00020413,2]
[329065519,1718079044125,-5526.7099617,0.00020413,2]
[329065520,1718079044138,-151.0,0.00020413,2]
[329065521,1718079044148,-151.0,0.00020413,2]
[329065522,1718079044158,-527.789218,0.00020413,2]
[329065523,1718079044169,-527.789218,0.00020413,2]
[329065524,1718079044179,-177.154446,0.00020413,2]
[329065525,1718079044189,-536.262157,0.00020413,2]
[329065526,1718079044200,-536.262148,0.00020413,2]
[329065527,1718079044210,-13483.94434315,0.00020415,2]
[329065529,1718079044222,-151.0,0.00020415,2]
[329065531,1718079044233,-151.0,0.00020415,2]
[329065533,1718079044244,-527.789218,0.00020415,2]
[329065535,1718079044255,-527.789218,0.00020415,2]
[329065537,1718079044265,-630.3,0.00020536,3]
[329065538,1718079044276,-315.16,0.00020536,3]
[329065540,1718079044287,-6861.52865343,0.00021,2]
[329065542,1718079044297,-527.789218,0.00021,2]
[329065544,1718079044308,-527.789222,0.00021,2]
[329065546,1718079044318,-151.0,0.00021236,2]
[329065547,1718079044330,-151.0,0.00021236,2]
[329065548,1718079044340,-647.92880373,0.00021297,2]
[329065549,1718079044352,-1539.092349,0.000213,2]
[329065550,1718079044362,-208.243,0.00021488,2]
[329065551,1718079044373,-2595.09287172,0.00021543,2]
[329065552,1718079044384,-587.0,0.00021644,2]
[329065553,1718079044395,-153.0,0.00021726,2]
[329065554,1718079044406,-1000.0,0.000218,2]
[329065555,1718079044417,-166.666666,0.00021918,2]
[329065556,1718079044428,-151.0,0.00022,2]
[329065557,1718079044439,-1000.0,0.000223,2]
[329065558,1718079044449,-166.666666,0.00022431,2]
[329065559,1718079044460,-2595.09287172,0.00022776,2]
[329065560,1718079044470,-254.0,0.000228,2]
[329065562,1718079044482,-150.817045,0.000228,2]
[329065563,1718079044492,-151.0,0.000228,2]
[329065564,1718079044502,-1000.0,0.000228,2]
[329065565,1718079044514,-100861.64607762,0.0002288,2]
[329065566,1718079044625,-1722.26300964,0.0002288,2]
[329065567,1718079044638,-2915.8559745,0.0002288,2]
[329065568,1718079044652,-981.19493176,0.0002288,2]
[329065569,1718079044670,-151049.18840099,0.0002288,2]
[329065570,1718079044681,-166.666666,0.00022944,2]
[329065571,1718079044691,-207.22317817,0.00023,2]
[329065572,1718079044702,-155.01550155,0.00023,2]
[329065573,1718079044712,-151.0,0.0002307,2]
[329065574,1718079044724,-151.0,0.00023287,2]
[329065575,1718079044737,-700.452588,0.00023288,2]
[329065576,1718079044750,-700.452588,0.00023288,2]
[329065577,1718079044762,-700.452588,0.00023288,2]
[329065578,1718079044772,-700.452588,0.00023288,2]
[329065579,1718079044783,-700.452588,0.00023288,2]
[329065580,1718079044794,-700.452588,0.00023288,2]
[329065581,1718079044805,-700.452588,0.00023288,2]
[329065582,1718079044817,-700.452588,0.00023288,2]
[329065583,1718079044829,-700.452588,0.00023288,2]
[329065584,1718079044841,-700.452588,0.00023288,2]
[329065585,1718079044852,-700.452588,0.00023288,2]
[329065586,1718079044862,-700.452588,0.00023288,2]
[329065587,1718079044872,-700.452588,0.00023288,2]
[329065588,1718079044882,-700.452588,0.00023288,2]
[329065589,1718079044893,-700.452588,0.00023288,2]
[329065590,1718079044903,-700.452588,0.00023288,2]
[329065591,1718079044913,-700.452588,0.00023288,2]
[329065592,1718079044923,-700.452588,0.00023288,2]
[329065593,1718079044934,-166.666666,0.00023456,2]
[329065594,1718079044946,-1000.0,0.000238,12]
[329065595,1718079044957,-151.0,0.000238,2]
[329065596,1718079044966,-157.737243,0.000238,2]
[329065597,1718079044977,-700.452588,0.000238,2]
[329065598,1718079044988,-700.452582,0.000238,2]
[329065599,1718079045000,-14517.43580001,0.000238,30]
[329065600,1718079045010,-166.666666,0.00023808,2]
[329065601,1718079045021,-5918.43286132,0.0002383,2]
[329065602,1718079045032,-151.0,0.00023833,7]
[329065603,1718079045043,-2000.0,0.000239,2]
[329065604,1718079045054,-593.0,0.000239,2]
[329065605,1718079045064,-166.666666,0.00023969,2]
[329065606,1718079045074,-527.60029577,0.00023999,2]
[329065607,1718079045085,-31892.58692993,0.00024,2]
[329065608,1718079045095,-2595.09287172,0.00024009,2]
[329065609,1718079045105,-412.4218428,0.00024107,2]
[329065610,1718079045115,-262.64158977,0.00024107,2]
[329065611,1718079045126,-662.85763735,0.00024107,2]
[329065612,1718079045137,-317.59972929,0.00024107,2]
[329065613,1718079045149,-155.2321767,0.00024107,2]
[329065614,1718079045159,-785.95268956,0.00024107,2]
[329065615,1718079045170,-155.06442409,0.00024107,2]
[329065616,1718079045180,-675.29103688,0.00024107,2]
[329065617,1718079045193,-281.8058979,0.00024107,2]
[329065618,1718079045206,-249.49868128,0.00024107,2]
[329065619,1718079045218,-3897.60227571,0.00024107,2]
[329065620,1718079045229,-155.4968445,0.00024107,2]
[329065621,1718079045240,-1444.03046421,0.00024107,2]
[329065622,1718079045253,-155.61494317,0.00024107,2]
[329065623,1718079045264,-155.36333206,0.00024107,2]
[329065624,1718079045275,-7938.2882071,0.00024107,2]
[329065625,1718079045285,-2357.94325207,0.00024108,2]
[329065626,1718079045296,-505.32918729,0.00024109,2]
[329065627,1718079045306,-502.81875941,0.00024109,2]
[329065628,1718079045317,-500.90002089,0.00024109,2]
[329065629,1718079045327,-526.73270974,0.00024109,2]
[329065630,1718079045432,-501.89900023,0.00024109,2]
[329065631,1718079045443,-500.0,0.00024109,2]
[329065632,1718079045454,-505.55114002,0.00024109,2]
[329065633,1718079045464,-500.0,0.00024109,2]
[329065634,1718079045475,-500.0,0.00024109,2]
[329065635,1718079045486,-500.94822671,0.00024109,2]
[329065636,1718079045496,-500.0,0.00024109,2]
[329065637,1718079045507,-501.56641669,0.00024109,2]
[329065638,1718079045517,-500.0,0.00024109,2]
[329065639,1718079045527,-500.0,0.00024109,2]
[329065640,1718079045538,-500.0,0.00024109,2]
[329065641,1718079045548,-500.0,0.00024109,2]
[329065642,1718079045558,-502.27060133,0.00024109,2]
[329065643,1718079045568,-500.0,0.00024109,2]
[329065644,1718079045579,-500.0,0.00024109,2]
[329065645,1718079045590,-500.0,0.00024109,2]
[329065646,1718079045600,-500.0,0.00024109,2]
[329065647,1718079045612,-500.0,0.00024109,2]
[329065648,1718079045623,-500.0,0.00024109,2]
[329065649,1718079045634,-332.52434161,0.00024109,2]
[329065650,1718079045644,-542.17130622,0.00024109,2]
[329065651,1718079045654,-501.93477469,0.00024109,2]
[329065652,1718079045665,-500.55049908,0.00024109,2]
[329065653,1718079045680,-500.6068576,0.00024109,2]
[329065654,1718079045690,-500.0,0.00024109,4]
[329065655,1718079045700,-500.0,0.00024109,2]
[329065656,1718079045712,-569.98924946,0.00024109,2]
[329065657,1718079045730,-503.22907652,0.00024109,2]
[329065658,1718079045742,-500.0,0.00024109,2]
[329065659,1718079045754,-500.0,0.00024109,2]
[329065660,1718079045765,-174.45162105,0.00024109,2]
[329065661,1718079045775,-536.77771604,0.00024109,2]
[329065662,1718079045786,-500.0,0.00024109,2]
[329065663,1718079045796,-500.0,0.00024109,2]
[329065664,1718079045806,-500.0,0.00024109,2]
[329065665,1718079045817,-500.0,0.00024109,2]
[329065666,1718079045827,-500.0,0.00024109,2]
[329065667,1718079045837,-500.0,0.00024109,2]
[329065668,1718079045848,-501.15983677,0.00024109,2]
[329065669,1718079045858,-500.0,0.00024109,2]
[329065670,1718079045869,-590.00910574,0.00024109,2]
[329065671,1718079045879,-500.0,0.00024109,2]
[329065672,1718079045890,-502.44874726,0.00024109,2]
[329065673,1718079045900,-501.41958495,0.00024109,2]
[329065674,1718079045910,-503.18212908,0.00024109,2]
[329065675,1718079045920,-500.0,0.00024109,2]
[329065676,1718079045931,-500.97617179,0.00024109,2]
[329065677,1718079045941,-500.0,0.00024109,2]
[329065678,1718079045952,-500.0,0.00024109,2]
[329065679,1718079045963,-500.0,0.00024109,2]
[329065680,1718079045973,-500.0,0.00024109,2]
[329065681,1718079045983,-500.0,0.00024109,2]
[329065682,1718079045992,-500.0,0.00024109,2]
[329065683,1718079046004,-500.0,0.00024109,2]
[329065684,1718079046015,-500.0,0.00024109,2]
[329065685,1718079046026,-500.0,0.00024109,2]
[329065686,1718079046035,-500.0,0.00024109,2]
[329065687,1718079046045,-500.99016206,0.00024109,2]
[329065688,1718079046055,-500.0,0.00024109,2]
[329065689,1718079046068,-500.0,0.00024109,2]
[329065690,1718079046079,-507.98118725,0.00024109,2]
[329065691,1718079046090,-500.0,0.00024109,2]
[329065692,1718079046101,-500.0,0.00024109,2]
[329065693,1718079046112,-500.0,0.00024109,2]
[329065694,1718079046123,-500.0,0.00024109,2]
[329065695,1718079046135,-503.53612767,0.00024109,2]
[329065696,1718079046146,-500.0,0.00024109,2]
[329065697,1718079046157,-500.0,0.00024109,2]
[329065698,1718079046167,-500.0,0.00024109,2]
[329065699,1718079046178,-509.61964294,0.00024109,2]
[329065700,1718079046189,-502.55055214,0.00024109,2]
[329065701,1718079046199,-503.58748815,0.00024109,2]
[329065702,1718079046211,-448.16839941,0.00024109,2]
[329065703,1718079046222,-598.40007129,0.00024109,2]
[329065704,1718079046234,-509.028052,0.00024109,2]
[329065705,1718079046244,-500.0,0.00024109,2]
[329065706,1718079046256,-500.0,0.00024109,2]
[329065707,1718079046267,-500.0,0.00024109,2]
[329065708,1718079046279,-502.70141459,0.00024109,2]
[329065709,1718079046289,-503.29381313,0.00024109,2]
[329065710,1718079046299,-500.0,0.00024109,2]
[329065711,1718079046310,-626.41092337,0.00024109,2]
[329065712,1718079046321,-500.0,0.00024109,2]
[329065713,1718079046331,-500.0,0.00024109,2]
[329065714,1718079046342,-500.0,0.00024109,2]
[329065715,1718079046352,-613.73470245,0.00024109,2]
[329065716,1718079046363,-500.0,0.00024109,2]
[329065717,1718079046376,-500.0,0.00024109,2]
[329065718,1718079046387,-500.0,0.00024109,2]
[329065719,1718079046397,-500.0,0.00024109,2]
[329065721,1718079046408,-500.0,0.00024109,2]
[329065722,1718079046418,-500.0,0.00024109,2]
[329065723,1718079046429,-500.0,0.00024109,2]
[329065724,1718079046440,-500.0,0.00024109,2]
[329065725,1718079046450,-500.0,0.00024109,2]
[329065726,1718079046462,-501.94225571,0.00024109,2]
[329065727,1718079046473,-507.92692533,0.00024109,2]
[329065728,1718079046483,-500.0,0.00024109,2]
[329065729,1718079046494,-512.02990465,0.00024109,2]
[329065730,1718079046505,-504.95685484,0.00024109,2]
[329065731,1718079046515,-500.0,0.00024109,2]
[329065732,1718079046526,-503.20839671,0.00024109,2]
[329065733,1718079046537,-500.0,0.00024109,2]
[329065734,1718079046547,-502.11987848,0.00024109,2]
[329065735,1718079046557,-500.0,0.00024109,2]
[329065736,1718079046569,-523.64325891,0.00024109,2]
[329065737,1718079046580,-500.0,0.00024109,2]
[329065738,1718079046596,-500.0,0.00024109,2]
[329065739,1718079046608,-500.0,0.00024109,2]
[329065740,1718079046620,-500.0,0.00024109,2]
[329065741,1718079046632,-505.54806492,0.00024109,2]
[329065742,1718079046644,-500.0,0.00024109,2]
[329065743,1718079046656,-500.0,0.00024109,2]
[329065746,1718079046669,-500.0,0.00024109,2]
[329065749,1718079046682,-502.39977936,0.00024109,2]
[329065752,1718079046692,-500.0,0.00024109,2]
[329065754,1718079046703,-500.0,0.00024109,2]
[329065756,1718079046715,-500.0,0.00024109,2]
[329065759,1718079046731,-500.0,0.00024109,2]
[329065761,1718079046742,-500.0,0.00024109,2]
[329065763,1718079046754,-500.0,0.00024109,2]
[329065765,1718079046765,-500.0,0.00024109,2]
[329065767,1718079046776,-505.24104899,0.00024109,2]
[329065769,1718079046786,-500.0,0.00024109,2]
[329065771,1718079046797,-500.0,0.00024109,2]
[329065773,1718079046808,-500.0,0.00024109,2]
[329065775,1718079046819,-503.94912556,0.00024109,2]
[329065776,1718079046829,-500.0,0.00024109,2]
[329065777,1718079046839,-546.25433251,0.00024109,2]
[329065778,1718079046850,-500.0,0.00024109,2]
[329065779,1718079046860,-510.40053022,0.00024109,2]
[329065780,1718079046872,-500.0,0.00024109,2]
[329065781,1718079046882,-500.0,0.00024109,2]
[329065782,1718079046893,-500.0,0.00024109,2]
[329065783,1718079046903,-500.0,0.00024109,2]
[329065785,1718079046913,-500.0,0.00024109,2]
[329065787,1718079046924,-505.18602567,0.00024109,2]
[329065788,1718079046935,-500.0,0.00024109,2]
[329065789,1718079046945,-500.0,0.00024109,2]
[329065790,1718079046955,-522.93115187,0.00024109,2]
[329065791,1718079046966,-614.2719877,0.00024109,2]
[329065792,1718079046976,-500.0,0.00024109,2]
[329065793,1718079046987,-500.0,0.00024109,2]
[329065794,1718079046997,-500.0,0.00024109,2]
[329065795,1718079047009,-500.0,0.00024109,2]
[329065796,1718079047020,-500.0,0.00024109,2]
[329065797,1718079047030,-503.47289318,0.00024109,2]
[329065798,1718079047040,-500.0,0.00024109,2]
[329065799,1718079047053,-502.50707522,0.00024109,2]
[329065800,1718079047064,-502.37314405,0.00024109,2]
[329065801,1718079047074,-511.04772201,0.00024109,2]
[329065802,1718079047085,-500.0,0.00024109,2]
[329065803,1718079047097,-500.0,0.00024109,2]
[329065804,1718079047109,-282.54254845,0.00024109,2]
[329065805,1718079047120,-500.0,0.00024109,2]
[329065806,1718079047130,-500.0,0.00024109,2]
[329065807,1718079047141,-500.0,0.00024109,2]
[329065808,1718079047151,-500.0,0.00024109,2]
[329065809,1718079047162,-500.0,0.00024109,2]
[329065810,1718079047173,-500.0,0.00024109,2]
[329065811,1718079047184,-500.0,0.00024109,2]
[329065812,1718079047195,-500.0,0.00024109,2]
[329065813,1718079047206,-500.0,0.00024109,2]
[329065814,1718079047216,-502.82621695,0.00024109,2]
[329065815,1718079047227,-500.0,0.00024109,2]
[329065816,1718079047237,-507.55625995,0.00024109,2]
[329065817,1718079047247,-500.0,0.00024109,2]
[329065818,1718079047258,-500.0,0.00024109,2]
[329065819,1718079047268,-506.8752513,0.00024109,2]
[329065820,1718079047280,-500.0,0.00024109,2]
[329065821,1718079047291,-508.2773343,0.00024109,2]
[329065822,1718079047302,-502.74501939,0.00024109,2]
[329065823,1718079047311,-503.39208149,0.00024109,2]
[329065825,1718079047322,-500.0,0.00024109,2]
[329065827,1718079047332,-500.0,0.00024109,2]
[329065828,1718079047343,-500.0,0.00024109,2]
[329065830,1718079047365,-500.0,0.00024109,2]
[329065831,1718079047376,-506.10660244,0.00024109,2]
[329065833,1718079047386,-500.0,0.00024109,2]
[329065834,1718079047397,-500.0,0.00024109,2]
[329065836,1718079047409,-500.0,0.00024109,2]
[329065837,1718079047419,-537.9835171,0.00024109,2]
[329065838,1718079047431,-175.44503207,0.00024109,2]
[329065839,1718079047441,-500.0,0.00024109,2]
[329065840,1718079047452,-500.0,0.00024109,2]
[329065841,1718079047462,-500.0,0.00024109,2]
[329065843,1718079047473,-500.0,0.00024109,2]
[329065844,1718079047483,-500.0,0.00024109,2]
[329065845,1718079047493,-500.0,0.00024109,2]
[329065846,1718079047504,-500.0,0.00024109,2]
[329065847,1718079047514,-500.0,0.00024109,2]
[329065848,1718079047525,-500.0,0.00024109,2]
[329065849,1718079047538,-500.0,0.00024109,2]
[329065850,1718079047548,-1184.73,0.00024109,2]
[329065851,1718079047558,-551.80238746,0.00024109,2]
[329065853,1718079047569,-500.0,0.00024109,2]
[329065854,1718079047580,-243.18217057,0.00024109,2]
[329065855,1718079047591,-500.0,0.00024109,2]
[329065856,1718079047602,-500.0,0.00024109,2]
[329065857,1718079047613,-502.71974628,0.00024109,2]
[329065858,1718079047624,-641.11919012,0.00024109,2]
[329065859,1718079047635,-500.0,0.00024109,2]
[329065861,1718079047646,-500.0,0.00024109,2]
[329065862,1718079047657,-500.0,0.00024109,2]
[329065863,1718079047670,-1057.71,0.00024109,2]
[329065864,1718079047680,-552.14,0.00024109,2]
[329065865,1718079047691,-500.0,0.00024109,2]
[329065866,1718079047702,-500.0,0.00024109,2]
[329065867,1718079047713,-500.0,0.00024109,2]
[329065868,1718079047728,-503.17601988,0.00024109,2]
[329065869,1718079047738,-500.0,0.00024109,2]
[329065870,1718079047751,-505.63814232,0.00024109,2]
[329065871,1718079047762,-500.0,0.00024109,2]
[329065872,1718079047772,-500.0,0.00024109,2]
[329065873,1718079047783,-500.0,0.00024109,2]
[329065874,1718079047794,-500.0,0.00024109,2]
[329065875,1718079047804,-502.13028345,0.00024109,2]
[329065876,1718079047814,-500.0,0.00024109,2]
[329065877,1718079047834,-500.0,0.00024109,2]
[329065878,1718079047845,-500.0,0.00024109,2]
[329065879,1718079047855,-93.84167229,0.00024109,2]
[329065881,1718079051074,-499.37591868,0.00019178,2]
[329065902,1718079277033,155.01550155,9.999e-05,2]
[329065945,1718079730026,182.05464704,9.999e-05,2]
[329065965,1718080026762,1226.8528699,9.999e-05,2]
[329065984,1718080203949,317.55665125,9.999e-05,2]
[329066077,1718080233554,-677.83,0.00018,2]
[329066091,1718080233775,-677.58274288,0.00018,2]
[329066093,1718080233790,-306.2376409,0.000189,2]
[329066095,1718080233804,-252.45284323,0.00019,2]
[329066097,1718080233815,-1830.86344967,0.00019177,2]
[329066099,1718080233827,-160.0543974,0.00019178,2]
[329066101,1718080233839,-318.29249767,0.00019996,2]
[329066104,1718080233862,-527.60029577,0.00019996,2]
[329066106,1718080233879,-164.65983281,0.00019997,2]
[329066108,1718080233898,-412.4218428,0.00019997,2]
[329066110,1718080233913,-155.4968445,0.00019997,2]
[329066112,1718080233937,-262.64158977,0.00019997,2]
[329066114,1718080233950,-785.95268956,0.00019997,2]
[329066116,1718080233965,-662.85763735,0.00019997,2]
[329066118,1718080233977,-155.61494317,0.00019997,2]
[329066119,1718080233997,-1444.03046421,0.00019997,2]
[329066121,1718080234009,-155.36333206,0.00019997,2]
[329066122,1718080234023,-155.06442409,0.00019997,2]
[329066124,1718080234039,-155.2321767,0.00019997,2]
[329066125,1718080234058,-249.49868128,0.00019998,2]
[329066127,1718080234072,-7938.2882071,0.00019998,2]
[329066129,1718080234093,-14768.44809934,0.00019999,2]
[329066403,1718080241721,-3864.76166415,0.00019999,2]
[329066404,1718080241734,-3477.22075132,0.0002,2]
[329066412,1718080241952,-2091.14007647,0.0002,2]
[329066414,1718080241966,-196.72388877,0.0002,2]
[329066416,1718080241978,-675.29103688,0.0002,2]
[329066417,1718080241989,-281.8058979,0.0002,2]
[329066419,1718080242001,-153.0,0.00020197,2]
[329066420,1718080242013,-153.0,0.00020492,2]
[329066421,1718080242025,-153.0,0.00020492,2]
[329066422,1718080242037,-153.0,0.00020494,2]
[329066423,1718080242051,-153.0,0.00020494,2]
[329066424,1718080242063,-153.0,0.00020494,2]
[329066425,1718080242074,-153.0,0.00020494,2]
[329066426,1718080242087,-153.0,0.00020494,2]
[329066427,1718080242100,-160.053646,0.00021421,2]
[329066428,1718080242112,-166.666666,0.00021918,2]
[329066429,1718080242128,-178.47489747,0.00021999,2]
[329066430,1718080242139,-500.0,0.00021999,2]
[329066431,1718080242155,-225.48126501,0.00021999,2]
[329066432,1718080242167,-267.94232503,0.00021999,2]
[329066433,1718080242178,-23708.80306454,0.00022,2]
[329066434,1718080242189,-402.29279071,0.00022331,2]
[329066435,1718080242204,-166.666666,0.00022431,2]
[329066436,1718080242216,-166.666666,0.00022944,2]
[329066437,1718080242229,-272.51996637,0.00022996,2]
[329066438,1718080242240,-182.89018335,0.00022996,2]
[329066439,1718080242252,-156.37499124,0.00022997,2]
[329066440,1718080242263,-208.09791498,0.00023,2]
[329066441,1718080242417,-155.01550155,0.00023,2]
[329066442,1718080242430,-402.29279066,0.00023276,2]
[329066443,1718080242441,-301.0,0.0002329,6]
[329066444,1718080242451,-166.666666,0.00023456,2]
[329066445,1718080242461,-166.666666,0.00023808,2]
[329066446,1718080242471,-1000.0,0.00023841,2]
[329066447,1718080242482,-1000.0,0.0002385,2]
[329066448,1718080242492,-302.0516616,0.00023852,2]
[329066449,1718080242503,-1000.0,0.00023853,2]
[329066450,1718080242514,-1000.0,0.00023864,2]
[329066451,1718080242525,-151.0,0.00023864,7]
[329066452,1718080242536,-300.0,0.00023865,2]
[329066453,1718080242547,-1000.0,0.00023868,2]
[329066454,1718080242560,-1000.0,0.00023872,2]
[329066456,1718080242571,-1000.0,0.00023889,2]
[329066457,1718080242582,-306.2376409,0.000239,2]
[329066458,1718080242594,-185.84760506,0.00023903,2]
[329066459,1718080242609,-1281.8802491,0.00023905,2]
[329066460,1718080242620,-1000.0,0.00023907,2]
[329066461,1718080242631,-1000.0,0.0002391,2]
[329066462,1718080242642,-224.10972252,0.00023911,2]
[329066463,1718080242652,-1155.40031062,0.00023911,2]
[329066464,1718080242663,-155.44200234,0.00023911,2]
[329066465,1718080242674,-927.1117103,0.00023911,2]
[329066466,1718080242685,-1000.0,0.0002392,2]
[329066467,1718080242698,-1000.0,0.00023937,2]
[329066468,1718080242709,-1000.0,0.00023949,2]
[329066469,1718080242722,-1000.0,0.00023949,2]
[329066470,1718080242734,-1000.0,0.00023958,2]
[329066471,1718080242747,-166.666666,0.00023969,2]
[329066472,1718080242758,-1000.0,0.0002397,2]
[329066474,1718080242769,-1000.0,0.00023978,2]
[329066475,1718080242780,-1000.0,0.0002398,2]
[329066476,1718080242791,-635.81473758,0.00023986,2]
[329066477,1718080242803,-1000.0,0.00023993,2]
[329066478,1718080242813,-1000.0,0.00023996,2]
[329066479,1718080242824,-524.19655516,0.00023998,2]
[329066480,1718080242835,-156.86510884,0.00023998,2]
[329066481,1718080242848,-552.23614437,0.00023998,2]
[329066482,1718080242858,-155.24147654,0.00023998,2]
[329066483,1718080242870,-722.06198513,0.00023998,2]
[329066484,1718080242881,-515.43295454,0.00023998,2]
[329066485,1718080242891,-759.42126626,0.00023998,2]
[329066486,1718080242902,-838.6785197,0.00023998,2]
[329066487,1718080242913,-194.96565459,0.00023999,2]
[329066488,1718080242924,-216.1777469,0.00023999,2]
[329066490,1718080242934,-206.99053906,0.00023999,2]
[329066491,1718080242945,-321.74671708,0.00023999,2]
[329066492,1718080242956,-500.0,0.00023999,2]
[329066493,1718080242966,-500.0,0.00023999,2]
[329066494,1718080242977,-500.0,0.00023999,2]
[329066495,1718080242987,-500.0,0.00023999,2]
[329066496,1718080242997,-500.0,0.00023999,2]
[329066497,1718080243008,-500.0,0.00023999,2]
[329066498,1718080243019,-500.0,0.00023999,2]
[329066499,1718080243029,-500.0,0.00023999,2]
[329066500,1718080243040,-500.0,0.00023999,2]
[329066501,1718080243053,-500.0,0.00023999,2]
[329066502,1718080243063,-500.0,0.00023999,2]
[329066503,1718080243074,-500.0,0.00023999,2]
[329066505,1718080243086,-500.0,0.00023999,2]
[329066508,1718080243098,-31892.58692993,0.00024,2]
[329066511,1718080243110,-1000.0,0.00024003,2]
[329066512,1718080243123,-1000.0,0.00024003,2]
[329066513,1718080243133,-1000.0,0.00024008,2]
[329066514,1718080243147,-1000.0,0.00024008,2]
[329066515,1718080243163,-1000.0,0.00024009,2]
[329066516,1718080243174,-622.88565398,0.00024009,2]
[329066517,1718080243186,-24463.11019891,0.00024009,3]
[329066518,1718080243199,-4239.70515949,0.00024015,2]
[329066519,1718080243212,-1000.0,0.00024021,2]
[329066520,1718080243224,-1000.0,0.00024064,2]
[329066521,1718080243234,-1000.0,0.00024067,2]
[329066522,1718080243245,-1000.0,0.00024076,2]
[329066523,1718080243256,-1000.0,0.0002409,2]
[329066524,1718080243267,-1000.0,0.00024093,2]
[329066526,1718080243278,-254.0,0.000241,2]
[329066527,1718080243288,-337.15869238,0.00024107,2]
[329066530,1718080243303,-1867.90509015,0.00024108,4]
[329066531,1718080243314,-2856.58369442,0.00024108,2]
[329066532,1718080243325,-7519.63154047,0.00024109,15]